bitfinex/quotes_ETHUSD_20241119
["timestamp","ask_amount","ask_price","bid_price","bid_amount"]
[1732012531111,3.20413,3121.0,3120.4,3.20461]
[1732012531613,3.20413,3121.0,3120.5,3.75453]
[1732012531807,3.20413,3121.0,3120.6,0.42937]
[1732012532620,3.20431,3120.8,3120.6,0.42937]
[1732012532819,3.20431,3120.8,3120.4,0.55]
[1732012533491,3.20416,3121.0,3120.4,0.55]
[1732012533492,6.40833,3121.0,3120.4,0.55]
[1732012533797,3.20447,3120.7,3120.2,1.01523225]
[1732012534313,4.02422,3121.2,3120.2,1.01523225]
[1732012534513,4.02422,3121.2,3120.2,1.43725148]
[1732012534514,3.20441,3120.7,3120.2,1.43725148]
[1732012534813,3.20452,3120.6,3120.2,1.43725148]
[1732012535111,3.20441,3120.7,3120.2,1.43725148]
[1732012535315,3.20424,3120.9,3120.3,3.20475]
[1732012535517,3.20424,3120.9,3120.3,3.67630082]
[1732012535675,3.20424,3120.9,3120.4,3.75471]
[1732012535995,3.20424,3120.9,3120.4,6.95935]
[1732012536203,3.20405,3121.1,3120.4,3.75464]
[1732012536384,3.2042,3120.9,3120.4,3.75464]
[1732012536592,3.2042,3120.9,3120.5,0.42201923]
[1732012536978,6.40849,3120.9,3120.5,0.42201923]
[1732012537425,3.20432,3120.8,3120.5,0.42201923]
[1732012537608,3.20432,3120.8,3120.4,0.55]
[1732012538324,3.2041,3121.0,3120.5,3.20458]
[1732012538914,3.20407,3121.1,3120.4,0.55]
[1732012538915,3.20399,3121.1,3120.4,0.55]
[1732012539125,3.20415,3121.0,3120.5,3.2046]
[1732012539415,3.20376,3121.4,3120.7,3.20433]
[1732012539416,3.20385,3121.3,3120.7,3.20433]
[1732012539625,0.7975,3121.4,3120.8,3.563433]
[1732012539820,3.20379,3121.3,3120.8,3.563433]
[1732012539979,3.20364,3121.5,3120.9,3.20418]
[1732012540173,3.2034,3121.7,3121.1,3.59148]
[1732012540373,6.40687,3121.7,3121.1,3.59148]
[1732012540642,4.02404,3121.9,3121.1,3.59148]
[1732012540796,3.20318,3121.9,3121.4,3.20362]
[1732012540993,3.20318,3121.9,3121.3,3.20371]
[1732012541213,6.40643,3121.9,3121.3,3.20371]
[1732012541380,3.20303,3122.1,3121.5,0.3875]
[1732012541719,3.20318,3121.9,3121.5,0.3875]
[1732012542017,3.20329,3121.8,3121.5,0.3875]
[1732012542722,3.20313,3122.0,3121.5,0.3875]
[1732012542930,3.20338,3121.7,3121.5,1.0354656]
[1732012543221,3.20324,3121.9,3121.5,1.0354656]
[1732012543589,3.20339,3121.7,3121.5,1.0354656]
[1732012543791,3.20339,3121.7,3121.5,0.3875]
[1732012546024,3.20324,3121.9,3121.5,0.3875]
[1732012546225,3.20298,3122.1,3121.6,0.55]
[1732012546380,3.20298,3122.1,3121.6,3.75347]
[1732012546787,3.20277,3122.3,3121.8,0.55]
[1732012547126,0.8216,3122.5,3121.9,3.20315]
[1732012547127,7.22687,3122.5,3121.9,3.20315]
[1732012547296,7.22687,3122.5,3122.0,3.20303]
[1732012547297,6.40527,3122.5,3122.0,3.20303]
[1732012547490,0.1417745,3122.8,3121.8,3.75318]
[1732012547491,0.1417745,3122.8,3122.2,0.3875]
[1732012547686,3.20252,3122.6,3122.2,0.3875]
[1732012548045,3.20252,3122.6,3122.2,0.746542]
[1732012548909,3.20252,3122.6,3122.4,0.64206547]
[1732012549318,3.20256,3122.5,3122.4,0.64206547]
[1732012549516,0.9248745,3122.8,3121.9,0.3875]
[1732012549517,7.01719527,3122.8,3121.9,0.3875]
[1732012549902,3.20285,3122.3,3121.9,0.3875]
[1732012550103,3.20285,3122.3,3121.9,1.02636219]
[1732012550498,6.4057,3122.3,3121.9,0.3875]
[1732012550759,3.81492527,3122.8,3122.0,0.55]
[1732012550915,3.20278,3122.3,3122.0,0.55]
[1732012551122,3.20257,3122.5,3122.0,0.55]
[1732012551326,3.20257,3122.5,3122.0,0.9999839]
[1732012551523,3.20257,3122.5,3122.0,3.75307]
[1732012551720,3.20241,3122.7,3122.0,3.75307]
[1732012551942,3.20256,3122.5,3122.0,0.55]
[1732012552135,3.20256,3122.5,3122.1,0.414065]
[1732012552520,3.20236,3122.7,3122.1,3.616945]
[1732012552830,3.3440545,3122.8,3122.2,3.20277]
[1732012553053,6.5463945,3122.8,3122.4,0.3875]
[1732012553240,3.20236,3122.7,3122.4,0.3875]
[1732012553439,6.5463945,3122.8,3122.4,0.3875]
[1732012553855,3.20236,3122.7,3122.4,0.3875]
[1732012554059,3.20246,3122.6,3122.4,0.3875]
[1732012554938,6.5463945,3122.8,3122.4,0.3875]
[1732012555341,3.20238,3122.7,3122.4,0.3875]
[1732012556179,6.40482,3122.7,3122.4,0.3875]
[1732012556376,3.20238,3122.7,3122.4,0.3875]
[1732012556582,3.20238,3122.7,3122.1,3.20296]
[1732012556583,3.20256,3122.5,3122.1,0.3875]
[1732012556761,3.20256,3122.5,3122.2,0.375296]
[1732012556946,3.20256,3122.5,3122.1,0.3875]
[1732012559656,3.20269,3122.4,3122.1,0.3875]
[1732012559857,3.20256,3122.5,3122.1,0.3875]
[1732012560730,3.20261,3122.5,3122.1,0.3875]
[1732012561532,3.20272,3122.4,3122.1,0.3875]
[1732012561736,3.20273,3122.4,3122.1,0.3875]
[1732012562632,3.20273,3122.4,3121.9,0.9375]
[1732012562835,3.20286,3122.2,3121.9,1.41672291]
[1732012563224,3.20273,3122.4,3121.9,1.41672291]
[1732012563391,3.20273,3122.4,3121.8,0.65141905]
[1732012563392,3.20317,3122.0,3121.8,0.65141905]
[1732012564032,3.20292,3122.2,3121.6,3.20343]
[1732012564237,3.20302,3122.1,3121.6,0.359102]
[1732012564430,2.89005077,3122.5,3121.6,0.64965389]
[1732012564431,3.20324,3121.9,3121.6,0.64965389]
[1732012564633,3.20318,3121.9,3121.6,0.64965389]
[1732012565292,3.20308,3122.0,3121.6,0.64965389]
[1732012565489,3.20297,3122.1,3121.6,0.64965389]
[1732012565729,3.20313,3122.0,3121.6,0.64965389]
[1732012566806,0.8131,3122.6,3121.9,3.20316]
[1732012567103,3.2021,3123.0,3122.6,0.3875]
[1732012567434,3.20222,3122.9,3122.6,0.3875]
[1732012567592,3.2021,3123.0,3122.6,0.3875]
[1732012567797,3.20217,3122.9,3122.6,0.3875]
[1732012567993,0.78,3123.1,3122.6,0.3875]
[1732012568190,3.20204,3123.0,3122.6,0.3875]
[1732012568393,0.78,3123.1,3122.6,0.3875]
[1732012568594,3.20187,3123.2,3122.7,3.75235]
[1732012569338,0.005,3123.5,3122.7,4.60935766]
[1732012571654,3.20164,3123.4,3122.7,4.60935766]
[1732012571829,3.20174,3123.3,3122.7,4.60935766]
[1732012572026,3.20188,3123.2,3122.7,1.40700766]
[1732012572343,0.8237,3123.4,3122.7,0.85700766]
[1732012572344,3.202,3123.1,3122.7,0.85700766]
[1732012573260,3.3440245,3122.8,3122.4,0.65307508]
[1732012573553,0.1417745,3122.8,3122.4,0.65307508]
[1732012574112,3.3440745,3122.8,3122.4,0.65307508]
[1732012574537,0.8071,3122.6,3121.9,1.668528]
[1732012574747,0.1417745,3122.8,3120.9,0.01]
[1732012574748,3.20307,3122.0,3121.2,3.59133]
[1732012574942,3.20307,3122.0,3121.6,0.63401387]
[1732012575255,3.20276,3122.4,3121.7,3.59082]
[1732012575560,3.20279,3122.3,3121.7,0.80998339]
[1732012575792,3.20305,3122.1,3121.7,0.3875]
[1732012576463,3.20281,3122.3,3121.7,0.3875]
[1732012576668,3.20295,3122.2,3121.7,0.3875]
[1732012576852,3.20281,3122.3,3121.7,0.3875]
[1732012576853,3.20298,3122.1,3121.7,0.3875]
[1732012577242,6.40566,3122.3,3121.7,0.3875]
[1732012577442,3.20288,3122.2,3121.7,0.3875]
[1732012577743,3.20281,3122.3,3121.7,0.3875]
[1732012577744,3.20299,3122.1,3121.7,0.3875]
[1732012578477,0.68614253,3122.6,3121.7,0.3875]
[1732012578782,3.03182527,3122.8,3121.7,0.3875]
[1732012578783,3.20324,3121.9,3121.7,0.55]
[1732012578938,0.7787,3122.1,3121.0,1.668868]
[1732012578939,3.20355,3121.6,3121.0,1.668868]
[1732012579139,3.20384,3121.3,3121.0,0.3875]
[1732012579348,3.20384,3121.3,3121.0,0.4873158]
[1732012579539,3.20408,3121.1,3120.7,0.3875]
[1732012579750,3.20412,3121.0,3120.7,0.3875]
[1732012579955,3.20394,3121.2,3120.7,0.3875]
[1732012580190,3.20394,3121.2,3120.9,0.65016372]
[1732012580780,3.20405,3121.1,3120.9,0.65016372]
[1732012580984,3.20405,3121.1,3121.0,0.55]
[1732012581144,3.20394,3121.2,3121.0,0.55]
[1732012581345,3.20399,3121.1,3120.9,0.65016372]
[1732012581582,3.2041,3121.0,3120.5,0.55]
[1732012581780,3.2041,3121.0,3120.5,0.909216]
[1732012582497,3.20431,3120.8,3120.5,0.359216]
[1732012582639,3.20451,3120.6,3120.5,0.64785681]
[1732012583204,3.20431,3120.8,3120.5,0.64785681]
[1732012584595,3.20451,3120.6,3120.5,0.64785681]
[1732012584759,3.20451,3120.6,3120.5,1.19785681]
[1732012587016,4.00811,3120.8,3120.5,1.19785681]
[1732012587507,3.20431,3120.8,3120.5,1.19785681]
[1732012587714,3.20414,3121.0,3120.5,4.84272249]
[1732012587930,3.20414,3121.0,3120.5,1.63812249]
[1732012588521,3.20427,3120.9,3120.5,1.63812249]
[1732012589311,3.20427,3120.9,3120.5,1.19785681]
[1732012590833,3.2041,3121.0,3120.5,1.19785681]
[1732012591188,3.99255,3121.1,3120.5,3.85242681]
[1732012591528,0.8089,3121.9,3121.2,3.20386]
[1732012591735,0.8089,3121.9,3120.6,0.3875]
[1732012591736,3.20379,3121.4,3121.0,0.55]
[1732012591933,3.20397,3121.2,3120.6,3.2045]
[1732012592435,3.20411,3121.0,3120.5,1.00164757]
[1732012592636,3.20411,3121.0,3120.6,0.42063076]
[1732012592782,3.20451,3120.6,3120.5,0.64785681]
[1732012593087,0.8089,3120.6,3119.8,0.3875]
[1732012593294,3.20488,3120.3,3119.8,0.3875]
[1732012593817,3.20488,3120.3,3119.7,3.20541]
[1732012593818,3.20504,3120.1,3119.6,3.20549]
[1732012594384,3.20504,3120.1,3119.5,0.3875]
[1732012594385,3.20513,3120.0,3119.5,0.3875]
[1732012594626,3.20523,3119.9,3119.8,0.64246731]
[1732012598429,3.20523,3119.9,3119.1,3.20604]
[1732012598634,3.20523,3119.9,3119.2,3.20594]
[1732012598828,3.20535,3119.8,3119.2,3.20594]
[1732012599033,0.7743,3120.0,3119.4,3.20571]
[1732012599275,0.7691,3120.2,3119.6,3.20546]
[1732012599445,3.20497,3120.2,3119.6,3.20546]
[1732012599649,3.20508,3120.1,3119.6,3.20546]
[1732012600235,3.7691,3120.5,3119.5,0.708071]
[1732012600440,3.2051,3120.1,3119.5,3.913701]
[1732012600667,3.20489,3120.3,3119.6,3.20546]
[1732012600850,3.20489,3120.3,3119.7,3.20541]
[1732012601041,3.20489,3120.3,3119.7,3.83852104]
[1732012601941,3.97373,3120.5,3119.9,3.20519]
[1732012602277,3.97373,3120.5,3120.0,3.20511]
[1732012602481,3.97373,3120.5,3120.0,3.59261]
[1732012602841,3.20463,3120.5,3120.0,3.59261]
[1732012603037,0.7502,3120.8,3119.8,0.7713521]
[1732012603378,0.7502,3120.8,3119.7,0.63311104]
[1732012603379,0.7502,3120.2,3119.7,0.63311104]
[1732012603589,3.20533,3119.8,3119.7,0.63311104]
[1732012606148,3.95516,3120.2,3119.7,0.63311104]
[1732012606349,3.2053,3119.9,3119.7,0.63311104]
[1732012606595,3.20533,3119.8,3119.7,0.63311104]
[1732012612891,3.20507,3120.1,3119.7,1.02061104]
[1732012613998,3.20487,3120.3,3119.7,1.44321714]
[1732012614220,3.20487,3120.3,3119.8,3.20531]
[1732012614757,6.40976,3120.3,3119.8,3.20531]
[1732012615069,3.20493,3120.2,3119.7,1.02061104]
[1732012615859,3.20493,3120.2,3119.7,4.22602104]
[1732012616361,3.20483,3120.3,3119.7,1.02061104]
[1732012616675,3.20498,3120.2,3119.7,4.22603104]
[1732012617062,3.20483,3120.3,3119.8,3.2053]
[1732012617906,3.20492,3120.2,3119.7,1.02061104]
[1732012619966,3.2053,3119.9,3119.7,0.63311104]
[1732012620263,4.00633,3119.8,3119.7,0.63311104]
[1732012620577,4.00706,3119.1,3118.6,0.33471302]
[1732012620778,4.00706,3119.1,3118.4,3.59426]
[1732012620985,3.20615,3119.0,3118.9,0.65499354]
[1732012621780,3.20644,3118.8,3118.2,3.20697]
[1732012622071,3.20621,3119.0,3118.3,3.20678]
[1732012622469,3.20642,3118.8,3118.3,3.20678]
[1732012622715,3.20621,3119.0,3118.4,3.20676]
[1732012622875,3.20621,3119.0,3118.5,3.20666]
[1732012623217,3.20653,3118.7,3118.2,3.20696]
[1732012623396,3.20666,3118.5,3118.4,0.64514887]
[1732012623598,3.20653,3118.7,3118.4,0.64514887]
[1732012623914,3.20659,3118.6,3118.4,0.64514887]
[1732012625916,6.41322,3118.6,3118.1,3.59457]
[1732012626389,3.20659,3118.6,3118.1,0.3875]
[1732012626906,3.2064,3118.8,3118.1,0.3875]
[1732012626907,3.20673,3118.5,3118.1,0.3875]
[1732012627917,3.20673,3118.5,3118.2,0.64014622]
[1732012628222,3.20687,3118.3,3118.2,0.64014622]
[1732012629748,3.20677,3118.4,3117.4,0.3875]
[1732012629941,3.20739,3117.8,3117.2,3.2079]
[1732012630588,0.7832,3117.9,3117.2,3.2079]
[1732012630815,3.99048,3117.9,3117.4,3.20776]
[1732012631242,0.7832,3117.9,3117.4,3.20776]
[1732012631399,0.7832,3117.9,3117.6,3.20756]
[1732012631604,0.7832,3117.9,3117.4,0.63992661]
[1732012631815,3.20762,3117.6,3117.4,0.63992661]
[1732012632015,3.20755,3117.7,3117.4,0.63992661]
[1732012634893,3.20755,3117.7,3117.3,0.55]
[1732012635749,0.7605,3117.8,3117.5,3.20763]
[1732012635967,3.20632,3118.9,3118.3,3.20679]
[1732012636178,3.99515,3119.1,3118.5,3.20657]
[1732012636379,3.20618,3119.0,3118.5,3.20657]
[1732012636723,3.20618,3119.0,3118.3,3.98302]
[1732012637037,3.20642,3118.8,3118.3,3.98302]
[1732012637364,3.20642,3118.8,3118.3,4.62850621]
[1732012637663,6.41286,3118.8,3118.3,4.62850621]
[1732012637968,3.20642,3118.8,3118.3,1.42168621]
[1732012638336,3.2062,3119.0,3118.3,4.62854621]
[1732012638666,3.99522,3119.1,3118.5,3.20659]
[1732012638826,3.20615,3119.0,3118.5,3.20659]
[1732012639168,3.975,3119.4,3118.8,3.20629]
[1732012639367,0.7692,3119.7,3119.0,3.20614]
[1732012639677,0.7692,3119.7,3119.0,6.41213]
[1732012639867,3.2056,3119.6,3119.1,3.20598]
[1732012640042,6.41121,3119.6,3119.0,3.20614]
[1732012640392,3.2056,3119.6,3119.1,3.20604]
[1732012641073,3.2056,3119.6,3119.0,3.20614]
[1732012641649,6.41121,3119.6,3119.0,3.20614]
[1732012641872,0.8159,3119.5,3118.9,0.803]
[1732012642072,1.21805,3119.5,3118.6,3.99252]
[1732012642273,3.20628,3118.9,3118.2,3.20691]
[1732012642438,3.20628,3118.9,3118.1,0.786]
[1732012642439,3.206,3119.2,3118.6,3.20651]
[1732012642782,4.02169,3119.4,3118.9,3.2062]
[1732012643275,4.02169,3119.4,3118.8,3.20635]
[1732012643481,4.02169,3119.4,3118.8,6.41264]
[1732012643649,4.02169,3119.4,3118.9,3.20623]
[1732012643850,0.8159,3119.4,3118.9,3.20623]
[1732012644057,3.20558,3119.6,3119.0,3.20608]
[1732012644361,3.20566,3119.5,3119.0,3.20608]
[1732012644547,3.20558,3119.6,3119.0,0.55]
[1732012644548,3.20581,3119.4,3119.0,0.55]
[1732012644747,3.20585,3119.3,3118.9,0.55]
[1732012644948,3.20585,3119.3,3118.4,3.9588]
[1732012644949,3.20595,3119.2,3118.4,3.9588]
[1732012645159,3.20595,3119.2,3118.4,0.7521]
[1732012645360,0.7663,3119.3,3118.7,3.20643]
[1732012645567,3.20576,3119.4,3118.9,3.20625]
[1732012645989,3.20576,3119.4,3118.7,3.527033]
[1732012646139,3.20603,3119.2,3118.5,3.20658]
[1732012646483,3.20603,3119.2,3118.6,3.75655]
[1732012646644,3.20611,3119.1,3118.6,0.55]
[1732012646841,3.20549,3119.7,3118.4,0.7521]
[1732012646842,0.01,3119.7,3118.4,0.7521]
[1732012647040,3.20654,3118.7,3118.1,3.20707]
[1732012647622,6.41265,3118.9,3118.3,3.20686]
[1732012648186,3.20643,3118.8,3118.3,3.20686]
[1732012648420,3.20652,3118.7,3118.1,0.55]
[1732012648683,0.717895,3118.9,3118.3,3.20679]
[1732012648684,3.20634,3118.9,3118.3,3.20679]
[1732012649039,0.7663,3119.0,3118.3,3.20679]
[1732012649282,0.7663,3119.0,3118.5,3.20666]
[1732012649283,3.97246,3119.0,3118.5,3.20666]
[1732012649585,3.20631,3118.9,3118.3,3.20679]
[1732012650090,3.0,3119.4,3118.2,0.55]
[1732012650091,0.8226,3118.8,3118.2,0.55]
[1732012650243,3.20657,3118.6,3118.2,0.55]
[1732012650554,3.20654,3118.7,3118.2,0.55]
[1732012651158,0.723544,3118.7,3117.9,3.86438503]
[1732012651363,0.8226,3118.8,3117.9,3.86438503]
[1732012651364,3.20662,3118.6,3117.9,3.86438503]
[1732012651565,6.41326,3118.6,3117.9,3.86438503]
[1732012651759,0.8226,3118.8,3117.9,3.86438503]
[1732012651760,4.02902,3118.8,3118.1,3.20702]
[1732012652003,7.23546,3118.8,3118.1,6.414]
[1732012652200,3.20647,3118.7,3118.1,6.414]
[1732012652408,3.20647,3118.7,3118.1,3.20698]
[1732012652614,3.20646,3118.7,3118.2,3.20693]
[1732012652763,3.20646,3118.7,3118.1,3.20698]
[1732012652970,3.20659,3118.6,3118.1,3.20698]
[1732012653269,0.8226,3118.8,3118.2,3.99316]
[1732012653270,4.02905,3118.8,3118.2,3.99316]
[1732012653465,3.20647,3118.7,3118.2,3.99316]
[1732012653997,6.41302,3118.7,3118.2,3.99316]
[1732012654199,3.20647,3118.7,3118.2,3.99316]
[1732012654395,4.02897,3118.8,3118.2,3.99316]
[1732012654597,4.02897,3118.8,3118.3,3.2068]
[1732012656537,0.8226,3118.8,3118.5,3.20666]
[1732012656697,3.0,3119.4,3118.4,3.20677]
[1732012656698,3.20623,3119.0,3118.4,3.20677]
[1732012656903,3.20627,3118.9,3118.4,3.20677]
[1732012657099,3.20638,3118.8,3118.2,3.9931]
[1732012657826,3.20638,3118.8,3118.3,3.20684]
[1732012658034,3.20673,3118.5,3118.0,3.20714]
[1732012658339,3.20689,3118.3,3117.9,0.65715503]
[1732012659547,6.41385,3118.3,3117.9,0.65715503]
[1732012659848,3.20689,3118.3,3117.9,0.65715503]
[1732012661933,3.20689,3118.3,3117.6,4.01305]
[1732012661934,3.98963,3118.2,3117.6,0.8055]
[1732012662106,3.20713,3118.1,3117.6,4.01307]
[1732012663366,6.41427,3118.1,3117.6,4.01307]
[1732012663548,3.20713,3118.1,3117.6,0.8055]
[1732012663865,6.41428,3118.1,3117.6,0.8055]
[1732012664063,6.41428,3118.1,3117.2,3.97475]
[1732012664064,3.20745,3117.8,3117.2,3.97475]
[1732012664425,6.4149,3117.8,3117.2,3.97475]
[1732012664847,3.20745,3117.8,3117.2,3.97475]
[1732012665065,3.2075,3117.7,3117.2,3.97475]
[1732012666751,3.20723,3118.0,3117.2,0.7668]
[1732012667061,3.20723,3118.0,3117.5,3.20769]
[1732012667264,0.7826,3118.2,3117.3,0.63568536]
[1732012667563,3.20741,3117.8,3117.3,3.84352536]
[1732012667923,3.98964,3118.2,3117.6,3.20759]
[1732012668128,3.2071,3118.1,3117.6,3.20759]
[1732012668329,3.98963,3118.2,3117.6,3.20751]
[1732012669362,3.20709,3118.1,3117.6,3.20751]
[1732012669670,0.7826,3118.2,3117.6,3.20751]
[1732012669671,0.7826,3118.2,3117.7,3.20745]
[1732012669875,0.7826,3118.2,3117.7,3.20743]
[1732012670076,0.7826,3118.2,3117.7,3.99993]
[1732012670077,3.98958,3118.2,3117.7,3.99993]
[1732012670564,0.7826,3118.2,3117.7,3.99993]
[1732012670925,3.98966,3118.2,3117.7,3.99993]
[1732012672470,0.7826,3118.2,3117.7,3.99993]
[1732012672641,0.7826,3118.2,3117.8,3.20731]
[1732012672839,3.20687,3118.3,3117.8,3.20731]
[1732012673531,3.20699,3118.2,3117.7,3.99996]
[1732012674331,3.20687,3118.3,3117.7,3.99996]
[1732012674570,0.8094,3118.5,3117.7,0.7925]
[1732012674571,3.0,3118.4,3117.7,0.7925]
[1732012674774,3.99994,3117.9,3117.4,3.97734]
[1732012674924,0.7926,3117.9,3117.5,3.20769]
[1732012675127,3.20719,3118.0,3117.5,3.20769]
[1732012675935,3.20726,3118.0,3117.4,3.97734]
[1732012676240,3.2073,3117.9,3117.4,0.7696]
[1732012676578,3.2073,3117.9,3117.4,3.97734]
[1732012677358,3.2074,3117.8,3117.4,3.97734]
[1732012677838,0.7926,3118.2,3117.4,0.7696]
[1732012678058,3.20742,3117.8,3117.4,0.7696]
[1732012678869,3.20724,3118.0,3117.4,0.7696]
[1732012679373,3.20728,3117.9,3117.4,0.7696]
[1732012679881,3.20739,3117.8,3117.4,0.7696]
[1732012681271,3.20739,3117.8,3117.3,3.20788]
[1732012681478,3.20739,3117.8,3117.2,1.44308003]
[1732012681773,3.97451,3117.7,3116.1,0.8297]
[1732012681974,3.97451,3117.7,3116.9,3.20828]
[1732012681975,3.20787,3117.4,3116.9,3.20828]
[1732012682129,3.20786,3117.4,3116.9,3.20828]
[1732012682647,3.20803,3117.2,3116.8,1.38463158]
[1732012682849,3.20813,3117.1,3116.8,0.63303158]
[1732012683762,3.20797,3117.3,3116.8,0.63303158]
[1732012684439,3.20797,3117.3,3116.8,3.84144158]
[1732012684630,3.20801,3117.2,3116.7,3.20851]
[1732012685047,6.41609,3117.2,3116.7,3.20851]
[1732012685378,6.41611,3117.2,3116.7,3.20851]
[1732012685686,3.20801,3117.2,3116.7,3.20851]
[1732012685866,3.20821,3117.0,3116.6,0.8203]
[1732012686202,3.20821,3117.0,3116.4,1.3294]
[1732012686331,3.20833,3116.9,3116.7,0.6437022]
[1732012687779,3.20821,3117.0,3116.7,0.6437022]
[1732012687982,0.7561,3117.2,3116.8,3.2084]
[1732012688440,7.17222,3117.2,3116.7,3.8522022]
[1732012688635,3.96415,3117.2,3116.7,3.8522022]
[1732012688874,3.20811,3117.1,3116.7,0.6437022]
[1732012689780,3.20834,3116.9,3116.7,0.6437022]
[1732012690149,3.20821,3117.0,3116.4,0.7794]
[1732012690347,1.152515,3117.2,3116.2,0.7983]
[1732012690348,3.20854,3116.7,3116.2,0.7983]
[1732012690736,3.20847,3116.8,3116.2,4.00724]
[1732012691994,3.20864,3116.6,3116.2,0.7983]
[1732012692686,3.96414,3117.2,3115.8,0.7697]
[1732012692687,0.8007,3116.5,3115.8,0.7697]
[1732012692868,3.20892,3116.4,3115.8,1.167621]
[1732012693066,6.41783,3116.4,3115.8,4.377061]
[1732012694076,3.20891,3116.4,3115.8,4.377061]
[1732012694250,6.41781,3116.4,3115.8,4.377061]
[1732012694450,3.20905,3116.2,3115.9,0.62898852]
[1732012694662,3.20924,3116.0,3115.4,3.20984]
[1732012694968,4.03534,3115.9,3115.4,3.20984]
[1732012695158,3.20944,3115.8,3115.3,0.8249]
[1732012695554,3.20944,3115.8,3115.3,4.03484]
[1732012696159,3.20944,3115.8,3115.3,0.8249]
[1732012696509,6.41897,3115.8,3115.3,0.8249]
[1732012696725,3.20956,3115.7,3115.2,0.63848559]
[1732012697503,0.826,3115.9,3115.2,0.63848559]
[1732012697661,3.20972,3115.6,3115.2,0.63848559]
[1732012698011,3.20991,3115.4,3115.1,0.7801]
[1732012698315,3.20991,3115.4,3114.8,3.99857]
[1732012698476,3.20971,3115.6,3115.1,3.21016]
[1732012698661,3.20976,3115.5,3115.0,3.21026]
[1732012699170,3.20971,3115.6,3115.1,3.21014]
[1732012699372,3.20971,3115.6,3115.0,3.21026]
[1732012699575,0.826,3115.9,3115.5,3.20975]
[1732012699786,0.01,3116.5,3115.3,3.20996]
[1732012699787,3.20934,3116.0,3115.4,0.8158]
[1732012699993,3.20934,3116.0,3115.4,1.218376]
[1732012700240,3.20934,3116.0,3115.5,3.2097]
[1732012700396,3.20903,3116.2,3115.6,3.20963]
[1732012700716,3.929711,3116.2,3115.4,0.8158]
[1732012700937,3.20914,3116.1,3115.6,3.2096]
[1732012701090,3.20924,3116.0,3115.5,3.20973]
[1732012701710,3.929711,3116.2,3115.5,3.20973]
[1732012702024,3.20918,3116.1,3115.5,6.41946]
[1732012702321,3.20918,3116.1,3115.6,3.20965]
[1732012702936,3.720681,3116.2,3115.7,3.20949]
[1732012703094,3.99778,3116.4,3115.4,0.8158]
[1732012703095,0.7889,3116.4,3115.9,3.20928]
[1732012703293,4.02492,3116.9,3116.3,3.20886]
[1732012703552,4.02492,3116.9,3116.0,0.7611]
[1732012703553,0.8166,3116.9,3116.4,3.20875]
[1732012704880,4.02491,3116.9,3116.4,3.20875]
[1732012705118,4.02491,3116.9,3116.0,0.7611]
[1732012705119,0.808,3117.2,3116.1,3.75913]
[1732012705331,0.808,3117.2,3116.6,3.20858]
[1732012705482,0.808,3117.2,3116.8,3.20834]
[1732012705928,4.01601,3117.2,3116.7,3.20845]
[1732012706428,0.808,3117.2,3116.8,3.20841]
[1732012706596,0.808,3117.2,3116.6,4.00136]
[1732012706797,0.808,3117.2,3116.7,3.20846]
[1732012707134,0.808,3117.2,3116.8,3.20841]
[1732012708108,0.808,3117.2,3116.7,3.20849]
[1732012708888,3.20817,3117.1,3116.6,0.55]
[1732012709430,3.20817,3117.1,3116.5,3.20866]
[1732012709431,3.20822,3117.0,3116.5,3.20866]
[1732012709782,3.20822,3117.0,3116.3,0.7582]
[1732012710112,0.320822,3116.9,3116.4,3.20881]
[1732012711424,3.529162,3116.9,3116.4,3.20881]
[1732012711733,4.02141,3116.8,3116.2,3.84886265]
[1732012711950,3.20868,3116.6,3116.1,0.55]
[1732012712109,3.20873,3116.5,3116.0,3.20918]
[1732012712433,3.20883,3116.4,3115.8,4.02159]
[1732012712643,3.20873,3116.5,3115.8,4.02159]
[1732012713503,3.20856,3116.7,3116.0,3.20917]
[1732012713504,3.2087,3116.6,3116.0,3.20917]
[1732012714029,3.89971108,3116.7,3116.2,3.20903]
[1732012714526,3.20868,3116.6,3116.0,3.20915]
[1732012714873,0.8129,3116.8,3116.4,3.20875]
[1732012715211,4.02131,3116.8,3116.3,3.20891]
[1732012715915,4.02131,3116.8,3116.2,3.20899]
[1732012715916,3.20832,3116.9,3116.2,3.21899]
[1732012716130,0.36514717,3118.8,3116.8,3.20832]
[1732012716131,2.89005077,3118.0,3116.8,3.20832]
[1732012716301,3.2077,3117.5,3117.0,3.20816]
[1732012716701,3.20761,3117.6,3116.9,0.7678]
[1732012716902,3.20761,3117.6,3116.9,4.373722]
[1732012717102,3.20772,3117.5,3117.0,3.2082]
[1732012718297,3.20772,3117.5,3116.8,3.20832]
[1732012718493,3.2078,3117.4,3116.9,3.2083]
[1732012718814,3.972,3117.4,3116.9,3.2083]
[1732012719319,0.7642,3117.4,3116.8,3.20832]
[1732012719522,0.7642,3117.4,3116.8,0.46478629]
[1732012719842,3.20755,3117.7,3116.8,3.22836]
[1732012719843,3.2077,3117.5,3116.8,3.22836]
[1732012720001,3.97171,3117.7,3117.0,3.20815]
[1732012720205,3.20772,3117.5,3117.0,3.20811]
[1732012720431,3.97171,3117.7,3117.0,3.20811]
[1732012720627,3.97171,3117.7,3117.2,3.208]
[1732012720816,3.97171,3117.7,3117.2,3.20793]
[1732012721699,0.7642,3117.7,3117.2,3.20793]
[1732012721899,0.7642,3117.7,3117.2,3.529723]
[1732012722202,0.7642,3117.7,3117.3,3.2079]
[1732012723510,0.7642,3117.7,3117.2,3.529723]